lending/lending_fUSD_20251107
["ID","MTS","AMOUNT","RATE_DAILY","PERIOD"]
[393345094,1762497038417,-279.795,0.0001689,2]
[393345095,1762497038428,-446.6817,0.0001689,2]
[393345096,1762497038439,-500.0,0.00016973,2]
[393345097,1762497038450,-500.0,0.00016973,2]
[393345098,1762497038461,-500.0,0.00016973,2]
[393345099,1762497038471,-500.0,0.00016973,2]
[393345100,1762497038482,-500.0,0.00016973,2]
[393345101,1762497038493,-500.0,0.00016973,2]
[393345102,1762497038504,-500.0,0.00016973,2]
[393345103,1762497038515,-500.0,0.00016973,2]
[393345104,1762497038527,-506.69181721,0.00016973,2]
[393345105,1762497038538,-1200.0,0.00016989,2]
[393345106,1762497038549,-1000.0,0.00016989,2]
[393345107,1762497038560,-109789.46010112,0.0001699,2]
[393345108,1762497038572,-250.0,0.00017,2]
[393345109,1762497038583,-32010.87409496,0.000171,2]
[393345110,1762497038594,-4111.96,0.00017208,2]
[393345111,1762497038606,-410.96302396,0.00017297,2]
[393345112,1762497038617,-433.0,0.00017339,2]
[393345113,1762497038628,-300.0,0.000174,6]
[393345114,1762497038638,-800.29344871,0.000175,2]
[393345115,1762497038650,-600.0,0.000175,6]
[393345116,1762497038662,-1052.1894013,0.00017521,2]
[393345117,1762497038673,-500.0,0.00017521,2]
[393345118,1762497038684,-1000.0,0.00017521,2]
[393345119,1762497038695,-1000.0,0.00017521,2]
[393345120,1762497038707,-812.81959123,0.00017521,2]
[393345121,1762497038718,-1000.0,0.00017521,2]
[393345122,1762497038729,-1000.0,0.00017521,2]
[393345123,1762497038740,-500.0,0.00017521,2]
[393345124,1762497038752,-900.0,0.000176,6]
[393345125,1762497038763,-1294.83,0.00017659,2]
[393345126,1762497038774,-1200.0,0.000177,6]
[393345127,1762497038785,-1500.0,0.000178,6]
[393345128,1762497038795,-410.96302396,0.00017824,2]
[393345129,1762497038806,-298.0,0.0001788,2]
[393345130,1762497038817,-300.0,0.000179,6]
[393345131,1762497038828,-486.63339794,0.000179,2]
[393345132,1762497038839,-816.5431772,0.000179,2]
[393345133,1762497038851,-587.0,0.00017966,2]
[393345134,1762497038863,-163.49583489,0.00017968,2]
[393345135,1762497038874,-500.0,0.00017973,2]
[393345136,1762497038885,-500.71108766,0.00017973,2]
[393345137,1762497038896,-500.0,0.00017973,2]
[393345138,1762497038907,-501.02087707,0.00017973,2]
[393345139,1762497038918,-500.0,0.00017973,2]
[393345140,1762497038928,-500.0,0.00017973,2]
[393345141,1762497038938,-500.0,0.00017973,2]
[393345142,1762497038948,-500.0,0.00017973,2]
[393345143,1762497038959,-500.86715567,0.00017973,2]
[393345144,1762497038969,-500.0,0.00017973,2]
[393345145,1762497038980,-505.50862562,0.00017973,2]
[393345146,1762497038990,-500.0,0.00017973,2]
[393345147,1762497039249,-500.2462784,0.00017973,2]
[393345148,1762497039262,-500.0,0.00017973,2]
[393345149,1762497039276,-500.0,0.00017973,2]
[393345150,1762497039285,-500.0,0.00017973,2]
[393345151,1762497039295,-158.19215752,0.00017973,2]
[393345152,1762497039304,-500.0,0.00017973,2]
[393345153,1762497039314,-500.0,0.00017973,2]
[393345154,1762497039323,-500.0,0.00017973,2]
[393345155,1762497039333,-500.0,0.00017973,2]
[393345156,1762497039343,-500.0,0.00017973,2]
[393345157,1762497039355,-500.0,0.00017973,2]
[393345158,1762497039364,-465.14690898,0.00017973,2]
[393345159,1762497039374,-500.0,0.00017973,2]
[393345160,1762497039385,-500.77100973,0.00017973,2]
[393345161,1762497039395,-500.0,0.00017973,2]
[393345162,1762497039405,-500.0935881,0.00017973,2]
[393345163,1762497039414,-500.0,0.00017973,2]
[393345164,1762497039423,-500.0,0.00017973,2]
[393345165,1762497039432,-500.0,0.00017973,2]
[393345166,1762497039442,-501.17210201,0.00017973,2]
[393345167,1762497039451,-297.4146046,0.0001799,2]
[393345168,1762497039460,-4111.96,0.00017998,2]
[393345169,1762497039469,-500.0,0.00017999,2]
[393345170,1762497039478,-500.0,0.00017999,2]
[393345171,1762497039487,-500.0,0.00017999,2]
[393345172,1762497039496,-500.0,0.00017999,2]
[393345173,1762497039506,-500.0,0.00017999,2]
[393345174,1762497039515,-500.0,0.00017999,2]
[393345175,1762497039524,-500.0,0.00017999,2]
[393345176,1762497039533,-500.0,0.00017999,2]
[393345177,1762497039542,-500.0,0.00017999,2]
[393345178,1762497039551,-500.0,0.00017999,2]
[393345179,1762497039560,-194.7,0.00017999,2]
[393345180,1762497039569,-3338251.17343316,0.00018,2]
[393345181,1762497039581,-2322.37181255,0.00018,2]
[393345182,1762497039633,512.88129681,0.000149,2]
[393345184,1762497039997,-512.7196139,0.00018,2]
[393345185,1762497040060,-2017.43641402,0.00018,2]
[393345186,1762497040120,-41034.13031612,0.00018,2]
[393345205,1762497040416,-1.7e-07,0.00018,2]
[393345207,1762497040431,-2560142.88123174,0.00018,2]
[393345209,1762497040440,-883.9094268,0.00018,2]
[393345211,1762497040450,-1179.22434804,0.00018,2]
[393345213,1762497040459,-1500.0,0.00018068,2]
[393345215,1762497040468,-1504.43139356,0.00018068,2]
[393345217,1762497040478,-1003.58550355,0.00018068,2]
[393345219,1762497040487,-1762.9039034,0.000181,2]
[393345221,1762497040496,-2351.0,0.00018149,2]
[393345223,1762497040506,-300.0,0.00018347,2]
[393345225,1762497040516,-410.96302396,0.0001835,2]
[393345227,1762497040525,-168.23721633,0.00018521,2]
[393345229,1762497040535,-500.0,0.00018521,2]
[393345231,1762497040544,-1008.49713198,0.00018521,2]
[393345233,1762497040553,-620.64256179,0.00018521,2]
[393345235,1762497040562,-503.03575028,0.00018521,2]
[393345237,1762497040571,-500.0,0.00018521,2]
[393345239,1762497040580,-1000.0,0.00018521,2]
[393345241,1762497040589,-1000.0,0.00018521,2]
[393345243,1762497040599,-1092.12362524,0.00018521,2]
[393345245,1762497040608,-1000.0,0.00018521,2]
[393345247,1762497040617,-1000.0,0.00018521,2]
[393345249,1762497040626,-1000.0,0.00018521,2]
[393345251,1762497040635,-1013.74679932,0.00018521,2]
[393345254,1762497040645,-992.63712394,0.00018521,2]
[393345256,1762497040654,-183.63983714,0.00018521,2]
[393345258,1762497040663,-1000.0,0.00018521,2]
[393345259,1762497040672,-1000.0,0.00018521,2]
[393345261,1762497040681,-1000.0,0.00018521,2]
[393345264,1762497040691,-1000.0,0.00018521,2]
[393345266,1762497040707,-1000.0,0.00018521,2]
[393345267,1762497040717,-1000.0,0.00018521,2]
[393345270,1762497040726,-1000.0,0.00018521,2]
[393345271,1762497040735,-1200.0,0.00018556,2]
[393345274,1762497040745,-540.96167146,0.00018565,2]
[393345275,1762497040755,-2000.0,0.00018616,2]
[393345278,1762497040765,-736.0,0.00018629,2]
[393345279,1762497040774,-300.0,0.00018689,2]
[393345281,1762497040784,-477.99034883,0.00018743,2]
[393345283,1762497040794,-4111.96,0.00018789,2]
[393345286,1762497040805,-150.07,0.000188,2]
[393345287,1762497040814,-150.07,0.000188,2]
[393345290,1762497040823,-150.07,0.000188,2]
[393345292,1762497040832,-150.07,0.000188,2]
[393345294,1762497040842,-150.07,0.000188,2]
[393345296,1762497040851,-150.07,0.000188,2]
[393345298,1762497040860,-150.07,0.000188,2]
[393345300,1762497040870,-150.07,0.000188,2]
[393345301,1762497040879,-150.07,0.000188,2]
[393345304,1762497040888,-150.07,0.000188,2]
[393345305,1762497040897,-150.07,0.000188,2]
[393345307,1762497040906,-150.07,0.000188,2]
[393345310,1762497040916,-150.07,0.000188,2]
[393345311,1762497040925,-150.07,0.000188,2]
[393345314,1762497040935,-150.07,0.000188,2]
[393345316,1762497040944,-150.07,0.000188,2]
[393345317,1762497040953,-150.07,0.000188,2]
[393345319,1762497040963,-150.07,0.000188,2]
[393345321,1762497040974,-150.07,0.000188,2]
[393345323,1762497040985,-150.07,0.000188,2]
[393345325,1762497040996,-150.07,0.000188,2]
[393345327,1762497041005,-150.07,0.000188,2]
[393345330,1762497041015,-150.07,0.000188,2]
[393345332,1762497041024,-150.07,0.000188,2]
[393345334,1762497041033,-150.07,0.000188,2]
[393345336,1762497041043,-150.07,0.000188,2]
[393345338,1762497041052,-150.07,0.000188,2]
[393345340,1762497041062,-150.07,0.000188,2]
[393345343,1762497041071,-150.07,0.000188,2]
[393345345,1762497041081,-150.07,0.000188,2]
[393345347,1762497041090,-150.07,0.000188,2]
[393345349,1762497041101,-150.07,0.000188,2]
[393345351,1762497041111,-150.07,0.000188,2]
[393345353,1762497041120,-150.07,0.000188,2]
[393345355,1762497041129,-150.07,0.000188,2]
[393345357,1762497041138,-150.07,0.000188,2]
[393345359,1762497041147,-150.07,0.000188,2]
[393345361,1762497041156,-150.07,0.000188,2]
[393345363,1762497041166,-150.07,0.000188,2]
[393345365,1762497041177,-150.07,0.000188,2]
[393345367,1762497041186,-150.07,0.000188,2]
[393345369,1762497041195,-150.07,0.000188,2]
[393345371,1762497041204,-150.07,0.000188,2]
[393345373,1762497041213,-150.07,0.000188,2]
[393345375,1762497041223,-150.07,0.000188,2]
[393345377,1762497041232,-150.07,0.000188,2]
[393345379,1762497041241,-150.07,0.000188,2]
[393345381,1762497041250,-150.07,0.000188,2]
[393345383,1762497041260,-150.07,0.000188,2]
[393345385,1762497041270,-150.07,0.000188,2]
[393345387,1762497041286,-150.07,0.000188,2]
[393345389,1762497041295,-150.07,0.000188,2]
[393345391,1762497041305,-150.07,0.000188,2]
[393345393,1762497041315,-150.07,0.000188,2]
[393345394,1762497041325,-150.07,0.000188,2]
[393345395,1762497041335,-150.07,0.000188,2]
[393345396,1762497041344,-150.07,0.000188,2]
[393345397,1762497041354,-150.07,0.000188,2]
[393345398,1762497041365,-150.07,0.000188,2]
[393345400,1762497041374,-150.07,0.000188,2]
[393345401,1762497041384,-150.07,0.000188,2]
[393345402,1762497041393,-150.07,0.000188,2]
[393345403,1762497041403,-150.07,0.000188,2]
[393345404,1762497041412,-150.07,0.000188,2]
[393345405,1762497041422,-150.07,0.000188,2]
[393345406,1762497041431,-150.07,0.000188,2]
[393345407,1762497041440,-150.07,0.000188,2]
[393345408,1762497041450,-150.07,0.000188,2]
[393345409,1762497041459,-150.07,0.000188,2]
[393345410,1762497041469,-150.07,0.000188,2]
[393345411,1762497041478,-150.07,0.000188,2]
[393345412,1762497041487,-150.07,0.000188,2]
[393345413,1762497041496,-150.07,0.000188,2]
[393345414,1762497041506,-150.07,0.000188,2]
[393345415,1762497041516,-150.07,0.000188,2]
[393345416,1762497041525,-150.07,0.000188,2]
[393345417,1762497041535,-150.07,0.000188,2]
[393345418,1762497041544,-150.07,0.000188,2]
[393345419,1762497041553,-150.07,0.000188,2]
[393345420,1762497041563,-410.96302396,0.00018877,2]
[393345421,1762497041572,-500.0,0.000189,2]
[393345422,1762497041583,-208.5743064,0.00019,5]
[393345423,1762497041592,-100115.69746685,0.00019,2]
[393345424,1762497041602,-5120.67650425,0.00019,2]
[393345425,1762497041612,-300.0,0.00019,2]
[393345426,1762497041622,-266044.14734338,0.00019,2]
[393345427,1762497041632,-266044.14734338,0.00019,2]
[393345428,1762497041642,-1500.0,0.00019068,2]
[393345429,1762497041651,-1500.0,0.00019068,2]
[393345430,1762497041660,-1500.0,0.00019068,2]
[393345431,1762497041670,-1500.0,0.00019068,2]
[393345432,1762497041680,-810.85902672,0.00019068,2]
[393345433,1762497041689,-1373.81755517,0.00019068,2]
[393345434,1762497041699,-1500.0,0.00019068,2]
[393345435,1762497041708,-1522.61319105,0.00019068,2]
[393345436,1762497041717,-1500.0,0.00019068,2]
[393345437,1762497041727,-1504.14266789,0.00019068,2]
[393345438,1762497041736,-504.28126932,0.00019068,2]
[393345439,1762497041745,-2500.0,0.00019164,2]
[393345440,1762497041754,-411.37398698,0.00019404,2]
[393345441,1762497041763,-260.92709679,0.00019567,2]
[393345442,1762497041772,-151.0,0.00019567,2]
[393345443,1762497041782,-151.0,0.00019567,2]
[393345444,1762497041791,-151.0,0.00019567,2]
[393345445,1762497041800,-151.0,0.00019567,2]
[393345446,1762497041809,-151.0,0.00019567,2]
[393345447,1762497041820,-151.0,0.00019567,2]
[393345448,1762497041830,-151.0,0.00019567,2]
[393345449,1762497041840,-151.0,0.00019567,2]
[393345450,1762497041850,-151.0,0.00019567,2]
[393345451,1762497041859,-151.0,0.00019567,2]
[393345452,1762497041868,-151.0,0.00019567,2]
[393345453,1762497041877,-151.0,0.00019567,2]
[393345454,1762497041887,-151.0,0.00019567,2]
[393345455,1762497041896,-151.0,0.00019567,2]
[393345456,1762497041905,-151.0,0.00019567,2]
[393345457,1762497041916,-151.0,0.00019567,2]
[393345458,1762497041924,-151.0,0.00019567,2]
[393345459,1762497041935,-151.0,0.00019567,2]
[393345460,1762497041944,-151.0,0.00019567,2]
[393345461,1762497041953,-151.0,0.00019567,2]
[393345462,1762497041961,-4111.96,0.00019579,2]
[393345463,1762497041970,-5575.74,0.00019579,2]
[393345464,1762497041979,-9999.99,0.00019579,2]
[393345465,1762497041988,-1002.54057635,0.00019616,2]
[393345466,1762497041997,-2000.0,0.00019616,2]
[393345467,1762497042006,-383.14812579,0.00019616,2]
[393345468,1762497042016,-2014.60520456,0.00019616,2]
[393345469,1762497042026,-2147.04253758,0.00019616,2]
[393345470,1762497042035,-500.0,0.00019616,2]
[393345471,1762497042045,-823.0,0.00019663,2]
[393345472,1762497042055,-1801.0420686,0.00019712,2]
[393345473,1762497042064,-300.0,0.00019717,2]
[393345474,1762497042072,-4874.77299672,0.000199,3]
[393345475,1762497042082,-3292.0,0.00019964,2]
[393345476,1762497042092,-500.0,0.00019973,2]
[393345477,1762497042101,-500.85457018,0.00019973,2]
[393345478,1762497042110,-500.0,0.00019973,2]
[393345479,1762497042119,-500.0,0.00019973,2]
[393345480,1762497042128,-500.0,0.00019973,2]
[393345481,1762497042138,-500.0,0.00019973,2]
[393345482,1762497042148,-635.57618945,0.00019973,2]
[393345483,1762497042157,-500.0,0.00019973,2]
[393345484,1762497042167,-500.0,0.00019975,2]
[393345485,1762497042176,-463.607732,0.00019975,2]
[393345486,1762497042185,-10820.30702064,0.0002,2]
[393345487,1762497042195,-1519.51893016,0.0002,2]
[393345488,1762497042204,-25361.98694477,0.0002,2]
[393345489,1762497042213,-4655.83971353,0.0002,2]
[393345490,1762497042222,-180379.71891958,0.0002,5]
[393345491,1762497042231,-8300.0,0.0002,4]
[393345492,1762497042241,-3950.0,0.0002,2]
[393345493,1762497042250,-462.96784881,0.0002,20]
[393345494,1762497042260,-2048.58691759,0.0002,14]
[393345495,1762497042274,-7225.11979424,0.0002,2]
[393345496,1762497042284,-1283.0616566,0.0002,2]
[393345497,1762497042293,-7310.04820368,0.0002,2]
[393345498,1762497042302,-2168.59057824,0.0002,3]
[393345499,1762497042314,-10163.70752487,0.0002,2]
[393345500,1762497042324,-1035.63503276,0.0002,2]
[393345501,1762497042334,-2838.06808516,0.0002,2]
[393345502,1762497042343,-8731.3976056,0.0002,2]
[393345503,1762497042356,-1000.0,0.0002,7]
[393345504,1762497042365,-9007.98855927,0.0002001,2]
[393345505,1762497042375,-1252.0,0.00020024,2]
[393345506,1762497042385,-2535.98606181,0.00020164,2]
[393345507,1762497042394,-4556.37,0.0002017,2]
[393345508,1762497042404,-150.99,0.0002017,2]
[393345509,1762497042413,-374.99,0.0002017,2]
[393345510,1762497042423,-768.02,0.00020187,2]
[393345511,1762497042433,-540.96167146,0.00020257,2]
[393345512,1762497042442,-4111.96,0.00020369,2]
[393345513,1762497042452,-1000.0,0.00020521,2]
[393345514,1762497042461,-716.85911878,0.00020521,2]
[393345515,1762497042471,-1000.0,0.00020521,2]
[393345516,1762497042481,-1000.0,0.00020521,2]
[393345517,1762497042492,-1000.0,0.00020521,2]
[393345518,1762497042502,-1000.0,0.00020521,2]
[393345519,1762497042510,-1000.0,0.00020523,2]
[393345520,1762497042519,-22351.71985182,0.000207,2]
[393345521,1762497042530,-41417.27131563,0.00021,2]
[393345522,1762497042540,-1182.05722643,0.00021,2]
[393345523,1762497042549,-195.11524369,0.00021,2]
[393345524,1762497042558,-350.0,0.00021,2]
[393345525,1762497042568,-1500.0,0.00021068,2]
[393345526,1762497042578,-1500.0,0.00021068,2]
[393345527,1762497042587,-1500.0,0.00021068,2]
[393345528,1762497042597,-1392.14835424,0.00021068,2]
[393345529,1762497042607,-644.81873748,0.00021068,2]
[393345530,1762497042616,-502.65576552,0.00021071,2]
[393345531,1762497042626,-4111.96,0.00021159,2]
[393345532,1762497042635,-816.54317716,0.00021359,2]
[393345533,1762497042646,-6315.01,0.0002137,2]
[393345534,1762497042655,-57433.0218314,0.000215,2]
[393345536,1762497042665,-220.0416091,0.000215,2]
[393345538,1762497042674,-1152.0,0.0002152,2]
[393345540,1762497042683,-2129.0,0.00021539,2]
[393345542,1762497042693,-2087.9034712,0.00021616,2]
[393345544,1762497042707,-1560.77369819,0.00021616,2]
[393345546,1762497042727,-1003.85054346,0.00021616,2]
[393345548,1762497042738,-150.0,0.00021689,2]
[393345550,1762497042748,-500.0,0.00021801,2]
[393345552,1762497042757,-500.0,0.00021917,2]
[393345554,1762497042766,-500.0,0.00021917,2]
[393345555,1762497042776,-500.0,0.00021917,2]
[393345556,1762497042785,-500.0,0.00021917,2]
[393345557,1762497042795,-500.0,0.00021917,2]
[393345558,1762497042804,-500.0,0.00021917,2]
[393345559,1762497042813,-500.0,0.00021917,2]
[393345560,1762497042822,-500.0,0.00021917,2]
[393345561,1762497042832,-500.0,0.00021917,2]
[393345562,1762497042841,-500.0,0.00021917,2]
[393345563,1762497042851,-500.0,0.00021917,2]
[393345564,1762497042860,-500.0,0.00021917,2]
[393345565,1762497042870,-500.0,0.00021917,2]
[393345566,1762497042880,-500.0,0.00021917,2]
[393345567,1762497042890,-500.0,0.00021917,2]
[393345568,1762497042900,-500.0,0.00021917,2]
[393345569,1762497042910,-500.0,0.00021917,2]
[393345570,1762497042920,-500.0,0.00021917,2]
[393345571,1762497042929,-500.0,0.00021917,2]
[393345572,1762497042939,-500.0,0.00021917,2]
[393345573,1762497042948,-500.0,0.00021917,2]
[393345574,1762497042958,-500.0,0.00021917,2]
[393345575,1762497042968,-609.1277229,0.00021917,2]
[393345576,1762497042977,-540.96167146,0.00021949,2]
[393345577,1762497042986,-4111.96,0.0002195,2]
[393345578,1762497042996,-4609.0,0.0002196,2]
[393345579,1762497043006,-10413.02,0.00022,7]
[393345580,1762497043015,-117767.25402134,0.00022,4]
[393345581,1762497043024,-4107.82408963,0.00022,2]
[393345582,1762497043034,-788.15321484,0.00022,7]
[393345583,1762497043044,-160.97,0.00022,2]
[393345584,1762497043054,-489.8069685,0.000221,2]
[393345585,1762497043063,-238.0016999,0.0002211,2]
[393345586,1762497043212,-178.05,0.00022207,2]
[393345587,1762497043221,-250.0,0.00022237,2]
[393345588,1762497043231,-35159.08642138,0.000225,2]
[393345589,1762497043240,-517.95567933,0.0002271,2]
[393345590,1762497043250,-4111.96,0.0002274,2]
[393345591,1762497043259,-352.75556532,0.00022785,2]
[393345592,1762497043269,-19202.56589629,0.000229,2]
[393345593,1762497043280,-628.25562574,0.00023,7]
[393345594,1762497043290,-435.52331328,0.00023,2]
[393345595,1762497043300,-997.68735176,0.00023,2]
[393345596,1762497043309,-400.0,0.00023,2]
[393345597,1762497043319,-2560.26705146,0.000231,2]
[393345598,1762497043328,-2194.0,0.00023143,2]
[393345599,1762497043337,-51657.89405864,0.000232,2]
[393345600,1762497043348,-11563.9880708,0.00023333,7]
[393345601,1762497043359,-200.0,0.000235,2]
[393345602,1762497043368,-4111.96,0.0002353,2]
[393345603,1762497043377,-1613.0,0.00023552,2]
[393345604,1762497043386,-540.96167146,0.00023641,2]
[393345605,1762497043395,-1029.79555358,0.00024,14]
[393345606,1762497043404,-3600.0,0.00024,2]
[393345607,1762497043414,-16048.0046882,0.00024,2]
[393345608,1762497043424,-6453.0,0.00024156,2]
[393345609,1762497043434,-417.56704257,0.0002421,2]
[393345610,1762497043445,-3658.97332196,0.0002421,2]
[393345611,1762497043456,-152.07,0.00024296,2]
[393345612,1762497043466,-4111.96,0.0002432,2]
[393345613,1762497043477,-162.14577741,0.0002455,15]
[393345614,1762497043487,-155.09,0.00024576,2]
[393345615,1762497043497,-356.91,0.0002459,2]
[393345616,1762497043507,-500.0,0.00024608,2]
[393345617,1762497043517,-178.05,0.00024615,2]
[393345618,1762497043527,-591.38327274,0.0002465,2]
[393345619,1762497043537,-165.80535779,0.0002465,2]
[393345620,1762497043547,-602554.262912,0.000248,3]
[393345621,1762497043557,-165.39845766,0.000248,30]
[393345622,1762497043567,-151.0,0.000248,7]
[393345623,1762497043579,-151.0,0.000248,7]
[393345624,1762497043589,-151.0,0.000248,7]
[393345625,1762497043598,-151.0,0.000248,7]
[393345626,1762497043611,-151.0,0.000248,7]
[393345627,1762497043621,-151.0,0.000248,7]
[393345628,1762497043631,-151.0,0.000248,7]
[393345629,1762497043644,-151.0,0.000248,7]
[393345630,1762497043653,-151.0,0.000248,7]
[393345631,1762497043664,-296.415688,0.000248,7]
[393345632,1762497043673,-151.0,0.000248,7]
[393345633,1762497043683,-151.0,0.000248,7]
[393345634,1762497043693,-151.0,0.000248,7]
[393345635,1762497043702,-3785.246069,0.000248,7]
[393345636,1762497043712,-3785.246069,0.000248,7]
[393345637,1762497043722,-151.0,0.000248,7]
[393345638,1762497043732,-3785.246069,0.000248,7]
[393345639,1762497043742,-3785.246069,0.000248,7]
[393345640,1762497043752,-151.0,0.000248,7]
[393345641,1762497043762,-151.0,0.000248,7]
[393345642,1762497043771,-151.0,0.000248,7]
[393345643,1762497043781,-341.900548,0.000248,7]
[393345644,1762497043794,-341.900548,0.000248,7]
[393345645,1762497043803,-341.900548,0.000248,7]
[393345646,1762497043813,-151.0,0.000248,7]
[393345647,1762497043822,-341.900548,0.000248,7]
[393345648,1762497043831,-518.642083,0.000248,7]
[393345649,1762497043840,-151.0,0.000248,7]
[393345650,1762497043850,-518.642083,0.000248,7]
[393345651,1762497043861,-151.0,0.000248,7]
[393345652,1762497043871,-518.642083,0.000248,7]
[393345653,1762497043880,-151.0,0.000248,7]
[393345654,1762497043889,-518.642083,0.000248,7]
[393345655,1762497043898,-151.0,0.000248,7]
[393345656,1762497043908,-151.0,0.000248,7]
[393345657,1762497043917,-161.113771,0.000248,7]
[393345658,1762497043926,-816.54317716,0.00024818,2]
[393345659,1762497043936,-575854.699129,0.000249,3]
[393345660,1762497043945,-2000.0,0.00025,2]
[393345661,1762497043954,-601.49527831,0.00025,2]
[393345662,1762497043963,-205.06591834,0.00025,2]
[393345663,1762497043972,-1763.69844896,0.00025,2]
[393345664,1762497043981,-17069.30099595,0.00025,2]
[393345665,1762497043990,-2741.27148346,0.00025,3]
[393345666,1762497043999,-360.0,0.00025,2]
[393345667,1762497044009,-3782.63999888,0.00025,2]
[393345668,1762497044018,-216.9027013,0.00025,21]
[393345669,1762497044028,-3007.4294775,0.00025,2]
[393345670,1762497044037,-12049.96528955,0.00025,2]
[393345671,1762497044046,-1051.41139429,0.00025,2]
[393345672,1762497044055,-165.25328451,0.00025,2]
[393345673,1762497044065,-100286.44598035,0.00025,2]
[393345674,1762497044075,-450.0,0.00025,2]
[393345675,1762497044084,-160.99,0.00025015,2]
[393345676,1762497044093,-4111.96,0.00025111,2]
[393345677,1762497044104,-540.96167146,0.00025332,2]
[393345678,1762497044113,-1588.0,0.00025777,2]
[393345679,1762497044122,-18088.70531115,0.00025879,2]
[393345680,1762497044131,-4111.96,0.00025901,2]
[393345681,1762497044140,-593.38270156,0.0002599,2]
[393345682,1762497044151,-4469.63207177,0.00026,2]
[393345683,1762497044160,-21134.85870964,0.00026,2]
[393345684,1762497044169,-4138.65,0.00026,2]
[393345685,1762497044178,-213.84136667,0.00026,2]
[393345686,1762497044188,-160.96188225,0.00026,2]
[393345687,1762497044198,-157.45979605,0.00026548,2]
[393345688,1762497044207,-9035.0,0.00026572,2]
[393345689,1762497044216,-1000.0,0.00026667,7]
[393345690,1762497044225,-768.02,0.00026676,2]
[393345691,1762497044234,-4111.96,0.00026691,2]
[393345692,1762497044243,-10413.02,0.000267,7]
[393345693,1762497044253,-1000.0,0.00026705,2]
[393345694,1762497044262,-160.99,0.00026729,2]
[393345695,1762497044274,-457.58721173,0.00026778,2]
[393345696,1762497044283,-257.53943217,0.00026778,2]
[393345697,1762497044292,-250.0,0.00027,2]
[393345698,1762497044301,-1021.08103789,0.00027,2]
[393345699,1762497044312,-530.0,0.00027,2]
[393345700,1762497044322,-500.0,0.00027,2]
[393345701,1762497044331,-178.05,0.00027023,7]
[393345702,1762497044341,-540.96167146,0.00027024,2]
[393345703,1762497044353,-200.0,0.00027285,2]
[393345704,1762497044362,-8020.4839602,0.0002739,2]
[393345705,1762497044371,-186.45372762,0.00027397,2]
[393345706,1762497044381,-300.0,0.00027397,2]
[393345707,1762497044392,-1428.76,0.00027397,2]
[393345708,1762497044403,-181.42,0.00027397,10]
[393345709,1762497044413,-425.91,0.000274,7]
[393345710,1762497044423,-2207.56,0.000274,2]
[393345711,1762497044432,-1102.92,0.000274,7]
[393345712,1762497044440,-500.0,0.00027416,2]
[393345713,1762497044451,-486.63339793,0.00027423,2]
[393345714,1762497044460,-4111.96,0.00027481,2]
[393345715,1762497044469,-542.49785778,0.000275,2]
[393345716,1762497044479,-180.0,0.00027533,2]
[393345717,1762497044488,-9626.29,0.00027559,2]
[393345718,1762497044498,-1000.0,0.00027647,2]